[Event "*** SCC Grand Prix: Titled Tuesday Blitz"]
[Site "Chess.com"]
[Date "2020.10.13"]
[Round "1"]
[White "ftorodent"]
[Black "MF1966Idrisov"]
[Result "1-0"]
[WhiteElo "2695"]
[BlackElo "2352"]
[TimeControl "180+1"]
[EndTime "10:06:58 PDT"]
[Termination "ftorodent won on time"]

1. d4 {[%clk 0:02:59.9]} 1... d6 {[%clk 0:02:59.5]} 2. Nf3 {[%clk 0:02:59.1]}
2... f5 {[%clk 0:02:59.4]} 3. g3 {[%clk 0:02:54.7]} 3... e6 {[%clk 0:02:57.3]}
4. Bg2 {[%clk 0:02:53.7]} 4... Nf6 {[%clk 0:02:57.4]} 5. O-O {[%clk 0:02:53.7]}
5... Be7 {[%clk 0:02:57.3]} 6. Nbd2 {[%clk 0:02:52.7]} 6... O-O {[%clk
0:02:56.9]} 7. Re1 {[%clk 0:02:52.9]} 7... d5 {[%clk 0:02:54.6]} 8. c4 {[%clk
0:02:50.9]} 8... c6 {[%clk 0:02:54.2]} 9. b3 {[%clk 0:02:41.7]} 9... Nbd7 {[%clk
0:02:52.3]} 10. Bb2 {[%clk 0:02:39.2]} 10... Ne4 {[%clk 0:02:52.1]} 11. Qc2
{[%clk 0:02:37.3]} 11... Bf6 {[%clk 0:02:50.3]} 12. Nf1 {[%clk 0:02:33]} 12...
Qb6 {[%clk 0:02:45.9]} 13. e3 {[%clk 0:02:27.1]} 13... Re8 {[%clk 0:02:38.3]}
14. Rac1 {[%clk 0:02:22.6]} 14... Nf8 {[%clk 0:02:37.5]} 15. Ne5 {[%clk
0:02:19.2]} 15... Bd7 {[%clk 0:02:28.7]} 16. f3 {[%clk 0:02:03.7]} 16... Ng5
{[%clk 0:02:27.1]} 17. cxd5 {[%clk 0:01:52.9]} 17... exd5 {[%clk 0:02:19.2]} 18.
Nxd7 {[%clk 0:01:50.4]} 18... Nxd7 {[%clk 0:02:14.3]} 19. Qxf5 {[%clk
0:01:50.1]} 19... Nf8 {[%clk 0:01:54.6]} 20. Qd3 {[%clk 0:01:49.4]} 20... Rad8
{[%clk 0:01:21.1]} 21. h4 {[%clk 0:01:48]} 21... Nge6 {[%clk 0:01:18]} 22. Red1
{[%clk 0:01:37.1]} 22... c5 {[%clk 0:01:16.1]} 23. dxc5 {[%clk 0:01:29.3]} 23...
Nxc5 {[%clk 0:01:15.6]} 24. Qd2 {[%clk 0:01:29.6]} 24... Bxb2 {[%clk 0:01:08.7]}
25. Qxb2 {[%clk 0:01:29.5]} 25... Nfe6 {[%clk 0:01:01]} 26. Kh2 {[%clk
0:01:29.5]} 26... a5 {[%clk 0:00:51.8]} 27. Rd2 {[%clk 0:01:21.5]} 27... a4
{[%clk 0:00:50.2]} 28. b4 {[%clk 0:01:20.4]} 28... Na6 {[%clk 0:00:43.7]} 29. a3
{[%clk 0:01:18.5]} 29... Nac7 {[%clk 0:00:42.8]} 30. Rcd1 {[%clk 0:01:14.4]}
30... Nb5 {[%clk 0:00:42.2]} 31. Rxd5 {[%clk 0:01:12.6]} 31... Rxd5 {[%clk
0:00:38]} 32. Rxd5 {[%clk 0:01:12.4]} 32... Qc6 {[%clk 0:00:30.5]} 33. f4 {[%clk
0:01:05.3]} 33... Qc3 {[%clk 0:00:24.2]} 34. Qxc3 {[%clk 0:01:04.9]} 34... Nxc3
{[%clk 0:00:24.3]} 35. Rd3 {[%clk 0:01:05.3]} 35... Nb5 {[%clk 0:00:16.5]} 36.
Bxb7 {[%clk 0:01:04.9]} 36... Kf8 {[%clk 0:00:11.1]} 37. Bc6 {[%clk 0:01:01.7]}
37... Rb8 {[%clk 0:00:10.6]} 38. Bxb5 {[%clk 0:01:00.3]} 38... Rxb5 {[%clk
0:00:10.5]} 39. Kg2 {[%clk 0:01:00.2]} 39... Ke7 {[%clk 0:00:05.4]} 40. Kf3
{[%clk 0:01:00.2]} 40... g6 {[%clk 0:00:05.7]} 41. Nd2 {[%clk 0:00:59.9]} 41...
Rb7 {[%clk 0:00:04.2]} 42. Nc4 {[%clk 0:00:58.2]} 42... Rc7 {[%clk 0:00:03.8]}
43. Nb6 {[%clk 0:00:58.1]} 43... Ra7 {[%clk 0:00:01.1]} 44. Nc8+ {[%clk
0:00:58]} 1-0

[Event "*** SCC Grand Prix: Titled Tuesday Blitz"]
[Site "Chess.com"]
[Date "2020.10.13"]
[Round "1"]
[White "esapunov"]
[Black "tandaleo"]
[Result "1-0"]
[WhiteElo "2655"]
[BlackElo "2324"]
[TimeControl "180+1"]
[EndTime "10:06:58 PDT"]
[Termination "esapunov won by resignation"]

1. c4 {[%clk 0:03:00.9]} 1... e6 {[%clk 0:03:00.1]} 2. Nf3 {[%clk 0:03:00.8]}
2... d5 {[%clk 0:03:00.4]} 3. d4 {[%clk 0:03:01.1]} 3... c6 {[%clk 0:03:00]} 4.
Qc2 {[%clk 0:03:00.9]} 4... Nf6 {[%clk 0:02:55]} 5. Nbd2 {[%clk 0:03:00.3]} 5...
Nbd7 {[%clk 0:02:54.4]} 6. g3 {[%clk 0:03:00.5]} 6... b6 {[%clk 0:02:51.4]} 7.
Bg2 {[%clk 0:03:00.7]} 7... Bb7 {[%clk 0:02:51.6]} 8. O-O {[%clk 0:03:00.9]}
8... Be7 {[%clk 0:02:51.7]} 9. e4 {[%clk 0:03:01.4]} 9... dxe4 {[%clk
0:02:44.6]} 10. Nxe4 {[%clk 0:03:01.1]} 10... c5 {[%clk 0:02:45.1]} 11. Nxf6+
{[%clk 0:02:55.2]} 11... Bxf6 {[%clk 0:02:44.6]} 12. d5 {[%clk 0:02:49]} 12...
O-O {[%clk 0:02:16]} 13. dxe6 {[%clk 0:02:45.3]} 13... fxe6 {[%clk 0:02:16.9]}
14. Ng5 {[%clk 0:02:42.3]} 14... Bxg5 {[%clk 0:02:12.9]} 15. Bxb7 {[%clk
0:02:42.2]} 15... Rb8 {[%clk 0:02:02.2]} 16. Be4 {[%clk 0:02:42]} 16... h6
{[%clk 0:01:54]} 17. Qe2 {[%clk 0:02:25.8]} 17... Bxc1 {[%clk 0:01:43.6]} 18.
Raxc1 {[%clk 0:02:25]} 18... Qe7 {[%clk 0:01:16]} 19. Rfe1 {[%clk 0:02:09.7]}
19... Rfd8 {[%clk 0:00:32.2]} 20. Rcd1 {[%clk 0:01:45.4]} 20... Nf8 {[%clk
0:00:30.5]} 21. h4 {[%clk 0:01:36.7]} 21... Rd4 {[%clk 0:00:22.8]} 22. Rxd4
{[%clk 0:01:36.2]} 22... cxd4 {[%clk 0:00:23.7]} 23. Bd3 {[%clk 0:01:36.5]}
23... Qf6 {[%clk 0:00:22.3]} 24. b4 {[%clk 0:01:34.4]} 24... a5 {[%clk 0:00:22]}
25. a3 {[%clk 0:01:33.1]} 25... axb4 {[%clk 0:00:21.7]} 26. axb4 {[%clk
0:01:33.4]} 26... Ra8 {[%clk 0:00:22.4]} 27. c5 {[%clk 0:01:29.7]} 27... bxc5
{[%clk 0:00:22.3]} 28. bxc5 {[%clk 0:01:30.1]} 28... Rc8 {[%clk 0:00:22.3]} 29.
Rc1 {[%clk 0:01:30.1]} 29... e5 {[%clk 0:00:19.4]} 30. Qe4 {[%clk 0:01:28.4]}
30... Qe7 {[%clk 0:00:13.6]} 31. c6 {[%clk 0:01:26.8]} 31... Qd6 {[%clk
0:00:13.6]} 32. Bc4+ {[%clk 0:01:19.9]} 32... Kh8 {[%clk 0:00:13.4]} 33. Bd5
{[%clk 0:01:20.5]} 33... Rc7 {[%clk 0:00:11]} 34. Re1 {[%clk 0:01:19.4]} 34...
Re7 {[%clk 0:00:10.5]} 35. Rb1 {[%clk 0:01:17.3]} 35... Rc7 {[%clk 0:00:06.9]}
36. Rb7 {[%clk 0:01:17.2]} 36... Rxb7 {[%clk 0:00:06.8]} 37. cxb7 {[%clk
0:01:17]} 37... Nd7 {[%clk 0:00:07.2]} 38. Bc4 {[%clk 0:01:10.7]} 38... Nc5
{[%clk 0:00:06.8]} 39. Qf3 {[%clk 0:01:04.1]} 39... Qb8 {[%clk 0:00:03]} 40. Qc6
{[%clk 0:00:53.2]} 40... Nxb7 {[%clk 0:00:02.9]} 41. Bd3 {[%clk 0:00:49.9]}
41... Na5 {[%clk 0:00:02.2]} 42. Qe4 {[%clk 0:00:49.9]} 42... Kg8 {[%clk
0:00:02.6]} 43. Qh7+ {[%clk 0:00:49.9]} 43... Kf8 {[%clk 0:00:03]} 44. Qh8+
{[%clk 0:00:50]} 1-0

[Event "*** SCC Grand Prix: Titled Tuesday Blitz"]
[Site "Chess.com"]
[Date "2020.10.13"]
[Round "1"]
[White "esrosenberg"]
[Black "Herracek"]
[Result "1/2-1/2"]
[WhiteElo "2299"]
[BlackElo "2621"]
[TimeControl "180+1"]
[EndTime "10:06:58 PDT"]
[Termination "Game drawn by repetition"]

1. Nf3 {[%clk 0:03:00.9]} 1... c5 {[%clk 0:03:00.1]} 2. c4 {[%clk 0:02:59.8]}
2... Nc6 {[%clk 0:03:00.4]} 3. Nc3 {[%clk 0:03:00.3]} 3... g6 {[%clk 0:03:00.7]}
4. g3 {[%clk 0:02:59.5]} 4... Bg7 {[%clk 0:03:00.9]} 5. Bg2 {[%clk 0:03:00.2]}
5... d6 {[%clk 0:03:01.8]} 6. O-O {[%clk 0:02:59.1]} 6... Bg4 {[%clk 0:03:02.4]}
7. a3 {[%clk 0:02:56.4]} 7... Qd7 {[%clk 0:03:00.4]} 8. b4 {[%clk 0:02:51.9]}
8... Nxb4 {[%clk 0:02:59.7]} 9. axb4 {[%clk 0:02:51.5]} 9... cxb4 {[%clk
0:03:00.6]} 10. Rb1 {[%clk 0:02:20]} 10... bxc3 {[%clk 0:02:59.2]} 11. dxc3
{[%clk 0:02:20.9]} 11... Rc8 {[%clk 0:02:50.2]} 12. Nd4 {[%clk 0:02:06.3]} 12...
b6 {[%clk 0:02:47.5]} 13. Qd3 {[%clk 0:01:50.2]} 13... Nf6 {[%clk 0:02:40.9]}
14. f3 {[%clk 0:01:37.2]} 14... Bh3 {[%clk 0:02:40.7]} 15. e4 {[%clk 0:01:29.2]}
15... Bxg2 {[%clk 0:02:39.7]} 16. Kxg2 {[%clk 0:01:29.5]} 16... O-O {[%clk
0:02:40.4]} 17. Rd1 {[%clk 0:01:21.1]} 17... Rc5 {[%clk 0:02:40]} 18. Ba3 {[%clk
0:01:17.1]} 18... Rh5 {[%clk 0:02:39.5]} 19. h4 {[%clk 0:01:11.5]} 19... Rc8
{[%clk 0:02:37.8]} 20. Ne2 {[%clk 0:01:07.8]} 20... Ra5 {[%clk 0:02:35.3]} 21.
Bb4 {[%clk 0:01:07.2]} 21... Ra2 {[%clk 0:02:35.4]} 22. Ra1 {[%clk 0:00:59.4]}
22... Qa4 {[%clk 0:02:35.2]} 23. Rxa2 {[%clk 0:00:57.6]} 23... Qxa2 {[%clk
0:02:36.1]} 24. e5 {[%clk 0:00:43.2]} 24... dxe5 {[%clk 0:02:34.8]} 25. Rd2
{[%clk 0:00:35.7]} 25... Qxc4 {[%clk 0:02:33.8]} 26. Qxc4 {[%clk 0:00:36.2]}
26... Rxc4 {[%clk 0:02:33.5]} 27. Rd8+ {[%clk 0:00:36.8]} 27... Bf8 {[%clk
0:02:27.5]} 28. Bxe7 {[%clk 0:00:36.6]} 28... Nd7 {[%clk 0:02:23.1]} 29. Rxd7
{[%clk 0:00:36.6]} 29... Bxe7 {[%clk 0:02:23.4]} 30. Rxe7 {[%clk 0:00:37.5]}
30... a5 {[%clk 0:02:23]} 31. Rxe5 {[%clk 0:00:37.4]} 31... Kf8 {[%clk
0:02:17.2]} 32. Rb5 {[%clk 0:00:37.4]} 32... Rc6 {[%clk 0:02:17.4]} 33. Nd4
{[%clk 0:00:31.6]} 33... Rd6 {[%clk 0:02:17.5]} 34. Kf2 {[%clk 0:00:28.6]} 34...
Ke7 {[%clk 0:02:17]} 35. Ke3 {[%clk 0:00:27.7]} 35... Kd7 {[%clk 0:02:17.5]} 36.
Ke4 {[%clk 0:00:25.1]} 36... f6 {[%clk 0:02:13.6]} 37. c4 {[%clk 0:00:17.6]}
37... Kc7 {[%clk 0:02:04.8]} 38. c5 {[%clk 0:00:15.7]} 38... bxc5 {[%clk
0:02:03]} 39. Rxc5+ {[%clk 0:00:16.2]} 39... Kd7 {[%clk 0:02:02.5]} 40. Rxa5
{[%clk 0:00:15.7]} 40... Rb6 {[%clk 0:02:01.8]} 41. Ra7+ {[%clk 0:00:14.9]}
41... Kd6 {[%clk 0:02:02.3]} 42. Rxh7 {[%clk 0:00:15.1]} 42... f5+ {[%clk
0:02:02.9]} 43. Kd3 {[%clk 0:00:12.4]} 43... Ke5 {[%clk 0:02:03.3]} 44. f4+
{[%clk 0:00:10.5]} 44... Kd5 {[%clk 0:02:03.3]} 45. Rd7+ {[%clk 0:00:09.6]}
45... Kc5 {[%clk 0:02:03.6]} 46. Rc7+ {[%clk 0:00:06.1]} 46... Kd5 {[%clk
0:02:02.6]} 47. Rc3 {[%clk 0:00:03.8]} 47... Ra6 {[%clk 0:01:58.5]} 48. Nf3
{[%clk 0:00:04.1]} 48... Ke6 {[%clk 0:01:54.7]} 49. Ne5 {[%clk 0:00:04.1]} 49...
Kd5 {[%clk 0:01:44.4]} 50. Rb3 {[%clk 0:00:03.3]} 50... Rd6 {[%clk 0:01:34.5]}
51. Ke3 {[%clk 0:00:02.3]} 51... Ra6 {[%clk 0:01:30.5]} 52. Rd3+ {[%clk
0:00:02.4]} 52... Kc5 {[%clk 0:01:25]} 53. Kf3 {[%clk 0:00:02.9]} 53... Re6
{[%clk 0:01:22.6]} 54. Re3 {[%clk 0:00:03.3]} 54... Kd5 {[%clk 0:01:22]} 55. Nd3
{[%clk 0:00:03.3]} 55... Ra6 {[%clk 0:01:20.5]} 56. Ne5 {[%clk 0:00:03.6]} 56...
Re6 {[%clk 0:01:19.7]} 57. Rd3+ {[%clk 0:00:03.6]} 57... Kc5 {[%clk 0:01:18.5]}
58. Re3 {[%clk 0:00:04.5]} 58... Kd5 {[%clk 0:01:17.8]} 1/2-1/2

[Event "*** SCC Grand Prix: Titled Tuesday Blitz"]
[Site "Chess.com"]
[Date "2020.10.13"]
[Round "1"]
[White "AntonovaNadezhda"]
[Black "Heineccius"]
[Result "0-1"]
[WhiteElo "2080"]
[BlackElo "2521"]
[TimeControl "180+1"]
[EndTime "10:06:58 PDT"]
[Termination "Heineccius won on time"]

1. d4 {[%clk 0:02:58.9]} 1... Nf6 {[%clk 0:02:59.3]} 2. Nf3 {[%clk 0:02:58.4]}
2... e6 {[%clk 0:02:59.7]} 3. Nbd2 {[%clk 0:02:58.2]} 3... c5 {[%clk 0:02:57.4]}
4. e3 {[%clk 0:02:57.2]} 4... b6 {[%clk 0:02:57.6]} 5. b3 {[%clk 0:02:56.7]}
5... Bb7 {[%clk 0:02:57.9]} 6. Bb2 {[%clk 0:02:57.4]} 6... Be7 {[%clk
0:02:57.5]} 7. Bd3 {[%clk 0:02:55.8]} 7... O-O {[%clk 0:02:57.6]} 8. O-O {[%clk
0:02:55.8]} 8... Nc6 {[%clk 0:02:57.6]} 9. a3 {[%clk 0:02:54.1]} 9... Rc8 {[%clk
0:02:56.2]} 10. Qe2 {[%clk 0:02:49.6]} 10... d6 {[%clk 0:02:54.8]} 11. Rac1
{[%clk 0:02:46.5]} 11... Qc7 {[%clk 0:02:53.8]} 12. Rfd1 {[%clk 0:02:45.7]}
12... cxd4 {[%clk 0:02:52.9]} 13. exd4 {[%clk 0:02:45.3]} 13... Nd5 {[%clk
0:02:53.3]} 14. g3 {[%clk 0:02:40.1]} 14... Nf6 {[%clk 0:02:52]} 15. c4 {[%clk
0:02:38.7]} 15... Qb8 {[%clk 0:02:52]} 16. Ne4 {[%clk 0:02:34.6]} 16... Rfe8
{[%clk 0:02:45.5]} 17. b4 {[%clk 0:02:18.5]} 17... Nxe4 {[%clk 0:02:19.8]} 18.
Bxe4 {[%clk 0:02:17.9]} 18... g6 {[%clk 0:02:20.3]} 19. c5 {[%clk 0:02:05.9]}
19... Bf6 {[%clk 0:02:13]} 20. b5 {[%clk 0:01:58.6]} 20... Na5 {[%clk 0:02:04]}
21. c6 {[%clk 0:01:39.5]} 21... Ba8 {[%clk 0:02:03.4]} 22. d5 {[%clk 0:01:31.6]}
22... e5 {[%clk 0:01:47.2]} 23. g4 {[%clk 0:01:17.7]} 23... Nb3 {[%clk
0:01:45.2]} 24. Rc2 {[%clk 0:01:13.8]} 24... Nc5 {[%clk 0:01:45]} 25. g5 {[%clk
0:01:05.3]} 25... Bd8 {[%clk 0:01:41.2]} 26. h4 {[%clk 0:01:02]} 26... Qc7
{[%clk 0:01:38.4]} 27. Nd2 {[%clk 0:00:55.6]} 27... Qe7 {[%clk 0:01:34.7]} 28.
Nc4 {[%clk 0:00:48.4]} 28... f5 {[%clk 0:01:29.4]} 29. gxf6 {[%clk 0:00:41.2]}
29... Qxf6 {[%clk 0:01:28.5]} 30. h5 {[%clk 0:00:36.9]} 30... Be7 {[%clk
0:01:13.4]} 31. hxg6 {[%clk 0:00:35.9]} 31... hxg6 {[%clk 0:01:14.3]} 32. Rc3
{[%clk 0:00:33.5]} 32... Kg7 {[%clk 0:01:02.5]} 33. Rg3 {[%clk 0:00:32.5]} 33...
g5 {[%clk 0:01:02.9]} 34. Bb1 {[%clk 0:00:31.2]} 34... Rh8 {[%clk 0:00:58.7]}
35. Qc2 {[%clk 0:00:15.8]} 35... Rh6 {[%clk 0:00:42]} 0-1

[Event "*** SCC Grand Prix: Titled Tuesday Blitz"]
[Site "Chess.com"]
[Date "2020.10.13"]
[Round "1"]
[White "Mikhail_Golubev"]
[Black "salomez"]
[Result "1-0"]
[WhiteElo "2542"]
[BlackElo "2167"]
[TimeControl "180+1"]
[EndTime "10:06:59 PDT"]
[Termination "Mikhail_Golubev won by checkmate"]

1. e4 {[%clk 0:03:00.9]} 1... c5 {[%clk 0:02:59.1]} 2. Nf3 {[%clk 0:02:58.1]}
2... e6 {[%clk 0:02:59.3]} 3. d4 {[%clk 0:02:57.5]} 3... cxd4 {[%clk 0:02:59.7]}
4. Nxd4 {[%clk 0:02:57.3]} 4... Nf6 {[%clk 0:03:00.6]} 5. Nc3 {[%clk 0:02:56.8]}
5... Nc6 {[%clk 0:03:00.5]} 6. a3 {[%clk 0:02:55.5]} 6... Be7 {[%clk 0:02:48.4]}
7. Nxc6 {[%clk 0:02:52.9]} 7... bxc6 {[%clk 0:02:47.9]} 8. e5 {[%clk 0:02:52.6]}
8... Nd5 {[%clk 0:02:47.6]} 9. Ne4 {[%clk 0:02:51.1]} 9... Ba6 {[%clk
0:02:46.1]} 10. c4 {[%clk 0:02:39.8]} 10... f5 {[%clk 0:02:28.5]} 11. cxd5
{[%clk 0:01:51.5]} 11... Bxf1 {[%clk 0:02:14.3]} 12. Kxf1 {[%clk 0:01:49.6]}
12... fxe4 {[%clk 0:02:12.2]} 13. d6 {[%clk 0:01:49.5]} 13... Bf8 {[%clk
0:01:54.9]} 14. Qg4 {[%clk 0:01:38.2]} 14... Qa5 {[%clk 0:01:30.7]} 15. Qxe4
{[%clk 0:01:36.9]} 15... g6 {[%clk 0:01:15.3]} 16. g3 {[%clk 0:01:32.3]} 16...
Bg7 {[%clk 0:01:13.9]} 17. Bf4 {[%clk 0:01:20.6]} 17... O-O {[%clk 0:01:07.6]}
18. h4 {[%clk 0:01:18]} 18... Qb5+ {[%clk 0:00:36.1]} 19. Kg2 {[%clk 0:01:17.5]}
19... Qxb2 {[%clk 0:00:32.2]} 20. Rab1 {[%clk 0:01:11.3]} 20... Qxa3 {[%clk
0:00:27.6]} 21. h5 {[%clk 0:01:06.7]} 21... g5 {[%clk 0:00:26.5]} 22. Bxg5
{[%clk 0:01:04]} 22... Rf5 {[%clk 0:00:18.3]} 23. Bf4 {[%clk 0:00:54.4]} 23...
Raf8 {[%clk 0:00:16]} 24. Rh4 {[%clk 0:00:44.8]} 24... Qa2 {[%clk 0:00:14.8]}
25. h6 {[%clk 0:00:35.5]} 25... Bxe5 {[%clk 0:00:13.9]} 26. Rg4+ {[%clk
0:00:31.4]} 26... Kf7 {[%clk 0:00:13.1]} 27. Bxe5 {[%clk 0:00:27.7]} 27... Rxf2+
{[%clk 0:00:09]} 28. Kg1 {[%clk 0:00:27.1]} 28... Ke8 {[%clk 0:00:04.3]} 29.
Rb8+ {[%clk 0:00:25.7]} 29... Kf7 {[%clk 0:00:02.8]} 30. Qxh7# {[%clk 0:00:24]}
1-0

[Event "*** SCC Grand Prix: Titled Tuesday Blitz"]
[Site "Chess.com"]
[Date "2020.10.13"]
[Round "1"]
[White "zmeeed67"]
[Black "KaterynaLagno"]
[Result "0-1"]
[WhiteElo "2369"]
[BlackElo "2716"]
[TimeControl "180+1"]
[EndTime "10:07:00 PDT"]
[Termination "KaterynaLagno won on time"]

1. e4 {[%clk 0:02:58.3]} 1... e5 {[%clk 0:02:59.5]} 2. Nf3 {[%clk 0:02:57.7]}
2... Nc6 {[%clk 0:03:00.2]} 3. c3 {[%clk 0:02:57.9]} 3... Nf6 {[%clk 0:02:56.8]}
4. d4 {[%clk 0:02:57.2]} 4... exd4 {[%clk 0:02:56.9]} 5. e5 {[%clk 0:02:56.1]}
5... Nd5 {[%clk 0:02:56.6]} 6. Bc4 {[%clk 0:02:55.6]} 6... Nb6 {[%clk 0:02:52]}
7. Bb3 {[%clk 0:02:55.5]} 7... d5 {[%clk 0:02:42.8]} 8. cxd4 {[%clk 0:02:54.7]}
8... Bg4 {[%clk 0:02:39.5]} 9. Be3 {[%clk 0:02:52.9]} 9... Qd7 {[%clk
0:02:27.4]} 10. h3 {[%clk 0:02:29.5]} 10... Bh5 {[%clk 0:02:26.3]} 11. Nc3
{[%clk 0:02:18.4]} 11... O-O-O {[%clk 0:02:24.8]} 12. a4 {[%clk 0:02:15.3]}
12... Nc4 {[%clk 0:02:23.6]} 13. Qe2 {[%clk 0:02:05.6]} 13... Nxe3 {[%clk
0:02:18.5]} 14. fxe3 {[%clk 0:02:03.4]} 14... Nb4 {[%clk 0:02:13.6]} 15. O-O
{[%clk 0:01:53.5]} 15... f6 {[%clk 0:02:13.7]} 16. Qb5 {[%clk 0:01:25.7]} 16...
c6 {[%clk 0:02:08.7]} 17. Qe2 {[%clk 0:01:12.3]} 17... fxe5 {[%clk 0:02:08.4]}
18. dxe5 {[%clk 0:01:12.5]} 18... Bc5 {[%clk 0:02:08]} 19. Kh1 {[%clk
0:01:02.5]} 19... Rde8 {[%clk 0:02:06.9]} 20. Qf2 {[%clk 0:00:28.6]} 20... Rhf8
{[%clk 0:02:05]} 21. Qg3 {[%clk 0:00:26.4]} 21... Bxe3 {[%clk 0:01:59.5]} 22.
Rae1 {[%clk 0:00:25.5]} 22... Bf4 {[%clk 0:01:58.7]} 23. Qh4 {[%clk 0:00:25.5]}
23... Bg6 {[%clk 0:01:52.3]} 24. g3 {[%clk 0:00:19.5]} 24... Bh6 {[%clk
0:01:12.7]} 25. Qxb4 {[%clk 0:00:18.2]} 25... Qxh3+ {[%clk 0:01:12.7]} 26. Nh2
{[%clk 0:00:18.6]} 26... Rxf1+ {[%clk 0:00:57]} 27. Rxf1 {[%clk 0:00:18.3]}
27... Qxg3 {[%clk 0:00:32.3]} 28. Qg4+ {[%clk 0:00:15.3]} 28... Qxg4 {[%clk
0:00:32.3]} 29. Nxg4 {[%clk 0:00:15.9]} 29... Bd2 {[%clk 0:00:32.8]} 30. Rf2
{[%clk 0:00:10.6]} 30... Bc1 {[%clk 0:00:32.2]} 31. Kh2 {[%clk 0:00:09.6]} 31...
h5 {[%clk 0:00:31.4]} 32. Rf1 {[%clk 0:00:03.8]} 32... Bxb2 {[%clk 0:00:30.9]}
33. Ne3 {[%clk 0:00:01.4]} 33... Bxc3 {[%clk 0:00:30.6]} 34. Nxd5 {[%clk
0:00:01.2]} 34... Bxe5+ {[%clk 0:00:29.5]} 0-1

[Event "*** SCC Grand Prix: Titled Tuesday Blitz"]
[Site "Chess.com"]
[Date "2020.10.13"]
[Round "1"]
[White "LittlePeasant"]
[Black "cholzan"]
[Result "0-1"]
[WhiteElo "2812"]
[BlackElo "2449"]
[TimeControl "180+1"]
[EndTime "10:07:02 PDT"]
[Termination "cholzan won by checkmate"]

1. Nf3 {[%clk 0:02:56.9]} 1... d6 {[%clk 0:02:57]} 2. c4 {[%clk 0:02:57.8]} 2...
e5 {[%clk 0:02:52.8]} 3. d4 {[%clk 0:02:58]} 3... Nd7 {[%clk 0:02:50.9]} 4. Nc3
{[%clk 0:02:58]} 4... Ngf6 {[%clk 0:02:48]} 5. g3 {[%clk 0:02:58]} 5... Be7
{[%clk 0:02:47.7]} 6. Bg2 {[%clk 0:02:57.9]} 6... O-O {[%clk 0:02:48]} 7. O-O
{[%clk 0:02:58.6]} 7... c6 {[%clk 0:02:48.2]} 8. e4 {[%clk 0:02:58.6]} 8... a6
{[%clk 0:02:46.9]} 9. Qc2 {[%clk 0:02:58.6]} 9... b5 {[%clk 0:02:43.2]} 10. c5
{[%clk 0:02:55.9]} 10... Qc7 {[%clk 0:02:36.5]} 11. Rd1 {[%clk 0:02:40.5]} 11...
dxc5 {[%clk 0:02:26.5]} 12. dxe5 {[%clk 0:02:40.4]} 12... Nxe5 {[%clk
0:02:23.7]} 13. Nxe5 {[%clk 0:02:37.5]} 13... Qxe5 {[%clk 0:02:24.6]} 14. Bf4
{[%clk 0:02:38]} 14... Qe6 {[%clk 0:02:24.1]} 15. e5 {[%clk 0:02:35.2]} 15...
Nh5 {[%clk 0:02:18.3]} 16. Be3 {[%clk 0:02:30.6]} 16... c4 {[%clk 0:01:57.5]}
17. f4 {[%clk 0:02:13.7]} 17... g6 {[%clk 0:01:49.5]} 18. Nd5 {[%clk 0:02:08.4]}
18... cxd5 {[%clk 0:01:36.1]} 19. Bxd5 {[%clk 0:02:07.3]} 19... Qh3 {[%clk
0:01:35.4]} 20. Bxa8 {[%clk 0:01:59.4]} 20... Bf5 {[%clk 0:01:34.7]} 21. Qg2
{[%clk 0:01:58.2]} 21... Ng7 {[%clk 0:00:55.4]} 22. Qxh3 {[%clk 0:01:51.7]}
22... Bxh3 {[%clk 0:00:56.3]} 23. Bg2 {[%clk 0:01:52.1]} 23... Bg4 {[%clk
0:00:54.8]} 24. Rdc1 {[%clk 0:01:36.3]} 24... Ne6 {[%clk 0:00:51.2]} 25. b3
{[%clk 0:01:34.6]} 25... Ba3 {[%clk 0:00:46.9]} 26. Rc2 {[%clk 0:01:34.2]} 26...
Bf5 {[%clk 0:00:46.3]} 27. Rac1 {[%clk 0:01:09]} 27... Bxc1 {[%clk 0:00:40.4]}
28. Rxc1 {[%clk 0:01:09.1]} 28... Bd3 {[%clk 0:00:37.6]} 29. Kf2 {[%clk
0:01:05]} 29... Rd8 {[%clk 0:00:28.8]} 30. Bb7 {[%clk 0:01:00.4]} 30... a5
{[%clk 0:00:25.4]} 31. Ba6 {[%clk 0:01:00.7]} 31... cxb3 {[%clk 0:00:22.8]} 32.
axb3 {[%clk 0:01:01.6]} 32... b4 {[%clk 0:00:22.9]} 33. Bb7 {[%clk 0:00:57.7]}
33... Nd4 {[%clk 0:00:22.4]} 34. Rd1 {[%clk 0:00:47.5]} 34... Nxb3 {[%clk
0:00:21.8]} 35. Ba6 {[%clk 0:00:43.9]} 35... Bxa6 {[%clk 0:00:19.9]} 36. Rxd8+
{[%clk 0:00:44.8]} 36... Kg7 {[%clk 0:00:20.2]} 37. Ra8 {[%clk 0:00:44.3]} 37...
Bc4 {[%clk 0:00:19.9]} 38. Bb6 {[%clk 0:00:43.2]} 38... Nc1 {[%clk 0:00:19]} 39.
Bxa5 {[%clk 0:00:39]} 39... b3 {[%clk 0:00:19.4]} 40. Ke3 {[%clk 0:00:39.6]}
40... b2 {[%clk 0:00:19.1]} 41. Rb8 {[%clk 0:00:38.5]} 41... Nb3 {[%clk
0:00:19]} 42. Bc3 {[%clk 0:00:39]} 42... b1=Q {[%clk 0:00:19]} 43. e6+ {[%clk
0:00:39.9]} 43... f6 {[%clk 0:00:19.1]} 44. e7 {[%clk 0:00:40.8]} 44... Qd3+
{[%clk 0:00:18.5]} 45. Kf2 {[%clk 0:00:41.1]} 45... Qe2+ {[%clk 0:00:18]} 46.
Kg1 {[%clk 0:00:41.6]} 46... Qf1# {[%clk 0:00:17.2]} 0-1